[Event "*** Titled Tuesday 3|2 Blitz"]
[Site "Chess.com"]
[Date "2016.07.05"]
[Round "8"]
[White "AdamHunt1"]
[Black "Cayse"]
[Result "0-1"]
[WhiteElo "2393"]
[BlackElo "2573"]
[TimeControl "180+2"]
[EndTime "12:44:19 PDT"]
[Termination "Cayse won by resignation"]

1. e4 {[%clk 0:03:01.9]} 1... e5 {[%clk 0:03:00.7]} 2. Nf3 {[%clk 0:03:02.4]}
2... Nc6 {[%clk 0:03:01.7]} 3. Bb5 {[%clk 0:03:03.3]} 3... a6 {[%clk 0:03:02.7]}
4. Ba4 {[%clk 0:03:04.6]} 4... Nf6 {[%clk 0:03:03.4]} 5. O-O {[%clk 0:03:06.3]}
5... Be7 {[%clk 0:03:03.6]} 6. Re1 {[%clk 0:03:07]} 6... b5 {[%clk 0:03:04.2]}
7. Bb3 {[%clk 0:03:07.7]} 7... O-O {[%clk 0:03:05.4]} 8. h3 {[%clk 0:03:04.7]}
8... Bb7 {[%clk 0:03:05.5]} 9. d3 {[%clk 0:03:05.4]} 9... d6 {[%clk 0:03:06.8]}
10. a4 {[%clk 0:03:04.6]} 10... Na5 {[%clk 0:03:04.8]} 11. Ba2 {[%clk
0:03:05.6]} 11... b4 {[%clk 0:03:06.1]} 12. Nbd2 {[%clk 0:03:05]} 12... c5
{[%clk 0:03:07]} 13. Nf1 {[%clk 0:02:59]} 13... Bc8 {[%clk 0:03:07.7]} 14. Ne3
{[%clk 0:02:58.8]} 14... Be6 {[%clk 0:03:08.6]} 15. Bd5 {[%clk 0:02:53]} 15...
Nxd5 {[%clk 0:03:05.6]} 16. exd5 {[%clk 0:02:54]} 16... Bd7 {[%clk 0:03:06.5]}
17. b3 {[%clk 0:02:29]} 17... f5 {[%clk 0:03:00.8]} 18. Bb2 {[%clk 0:02:29.4]}
18... f4 {[%clk 0:03:02]} 19. Nf1 {[%clk 0:02:29.4]} 19... Qe8 {[%clk
0:02:55.4]} 20. Kh2 {[%clk 0:02:27.3]} 20... Qf7 {[%clk 0:02:55.9]} 21. N1d2
{[%clk 0:01:49.2]} 21... Qxd5 {[%clk 0:02:54.1]} 22. Ne4 {[%clk 0:01:50.9]}
22... Nc6 {[%clk 0:02:49.8]} 23. Qd2 {[%clk 0:01:50.1]} 23... Rab8 {[%clk
0:02:47]} 24. Re2 {[%clk 0:01:37.7]} 24... a5 {[%clk 0:02:44.5]} 25. Rae1 {[%clk
0:01:37.6]} 25... Nd4 {[%clk 0:02:45]} 26. Bxd4 {[%clk 0:01:32.3]} 26... cxd4
{[%clk 0:02:45.7]} 27. Qc1 {[%clk 0:01:22.8]} 27... Rbc8 {[%clk 0:02:43.1]} 28.
Nfd2 {[%clk 0:01:23.9]} 28... Qe6 {[%clk 0:02:33.7]} 29. f3 {[%clk 0:01:16.5]}
29... Bh4 {[%clk 0:02:33.4]} 30. Nf2 {[%clk 0:01:14.1]} 30... Rf6 {[%clk
0:02:23.9]} 31. Nc4 {[%clk 0:00:53.3]} 31... Rg6 {[%clk 0:01:48.2]} 32. Nxa5
{[%clk 0:00:52.5]} 32... Bxf2 {[%clk 0:01:26.4]} 33. Rxf2 {[%clk 0:00:52.8]}
33... d5 {[%clk 0:01:28]} 34. Rfe2 {[%clk 0:00:42.5]} 34... Qb6 {[%clk 0:01:28]}
35. Rxe5 {[%clk 0:00:42.6]} 35... Qxa5 {[%clk 0:01:28.4]} 36. Qxf4 {[%clk
0:00:43.7]} 36... Rf8 {[%clk 0:01:14.5]} 37. Qxd4 {[%clk 0:00:43.5]} 37... Bc6
{[%clk 0:00:49.4]} 38. Re6 {[%clk 0:00:44.6]} 38... Qc7+ {[%clk 0:00:40.4]} 39.
Kh1 {[%clk 0:00:40.7]} 39... Qg3 {[%clk 0:00:39.5]} 40. R1e2 {[%clk 0:00:37.7]}
40... Rxe6 {[%clk 0:00:29.2]} 41. Rxe6 {[%clk 0:00:37.7]} 41... Rxf3 {[%clk
0:00:30.8]} 42. gxf3 {[%clk 0:00:09.6]} 42... Qxh3+ {[%clk 0:00:31.1]} 43. Kg1
{[%clk 0:00:11.3]} 43... Qxe6 {[%clk 0:00:32.7]} 44. Kf2 {[%clk 0:00:11.6]}
44... Qd6 {[%clk 0:00:31.8]} 45. a5 {[%clk 0:00:11.3]} 45... Bd7 {[%clk
0:00:30.4]} 46. Qb6 {[%clk 0:00:11]} 46... Qxb6+ {[%clk 0:00:29.9]} 47. axb6
{[%clk 0:00:11.5]} 47... Bc6 {[%clk 0:00:31.5]} 48. Ke3 {[%clk 0:00:12.9]} 48...
h5 {[%clk 0:00:32.5]} 49. Kd4 {[%clk 0:00:14.2]} 49... h4 {[%clk 0:00:33.7]} 50.
Kc5 {[%clk 0:00:13.6]} 50... Ba8 {[%clk 0:00:34.6]} 0-1

[Event "*** Titled Tuesday 3|2 Blitz"]
[Site "Chess.com"]
[Date "2016.07.05"]
[Round "8"]
[White "Hikaru"]
[Black "OparinGrigoriy"]
[Result "1-0"]
[WhiteElo "2996"]
[BlackElo "2648"]
[TimeControl "180+2"]
[EndTime "12:44:26 PDT"]
[Termination "Hikaru won by resignation"]

1. e4 {[%clk 0:03:01.9]} 1... c5 {[%clk 0:03:00.7]} 2. Nf3 {[%clk 0:03:03.3]}
2... d6 {[%clk 0:03:02.1]} 3. d4 {[%clk 0:03:04.9]} 3... cxd4 {[%clk 0:03:04]}
4. Nxd4 {[%clk 0:03:06.8]} 4... Nf6 {[%clk 0:03:05.7]} 5. Nc3 {[%clk 0:03:08.5]}
5... a6 {[%clk 0:03:07.3]} 6. Nb3 {[%clk 0:03:10.2]} 6... e6 {[%clk 0:03:01.2]}
7. g4 {[%clk 0:03:00.8]} 7... b5 {[%clk 0:03:02.3]} 8. g5 {[%clk 0:02:56.5]}
8... Nfd7 {[%clk 0:03:02.8]} 9. Bg2 {[%clk 0:02:57.3]} 9... Bb7 {[%clk
0:03:04.2]} 10. O-O {[%clk 0:02:58.3]} 10... Nc6 {[%clk 0:03:01.5]} 11. Be3
{[%clk 0:02:59.2]} 11... Be7 {[%clk 0:03:01.8]} 12. f4 {[%clk 0:02:58.4]} 12...
O-O {[%clk 0:03:02.6]} 13. h4 {[%clk 0:02:56.9]} 13... b4 {[%clk 0:03:01.4]} 14.
Ne2 {[%clk 0:02:56.9]} 14... a5 {[%clk 0:03:02.6]} 15. f5 {[%clk 0:02:56.2]}
15... a4 {[%clk 0:02:54.8]} 16. Nbd4 {[%clk 0:02:57]} 16... Nxd4 {[%clk
0:02:54.7]} 17. Nxd4 {[%clk 0:02:57.5]} 17... Nc5 {[%clk 0:02:50.5]} 18. Qg4
{[%clk 0:02:54.6]} 18... exf5 {[%clk 0:01:59.4]} 19. exf5 {[%clk 0:02:39.3]}
19... Bxg2 {[%clk 0:01:58.5]} 20. Qxg2 {[%clk 0:02:41.2]} 20... Re8 {[%clk
0:01:57.1]} 21. f6 {[%clk 0:02:42.5]} 21... Bf8 {[%clk 0:01:58]} 22. fxg7 {[%clk
0:02:43.9]} 22... Bxg7 {[%clk 0:01:56.7]} 23. Nf5 {[%clk 0:02:45.5]} 23... Re6
{[%clk 0:01:14.1]} 24. Rad1 {[%clk 0:02:36.1]} 24... Ne4 {[%clk 0:01:10.8]} 25.
Bd4 {[%clk 0:02:09.5]} 25... Bxd4+ {[%clk 0:01:05.4]} 26. Rxd4 {[%clk
0:02:09.7]} 26... Qb6 {[%clk 0:00:58.5]} 27. Kh2 {[%clk 0:02:00.8]} 27... Rae8
{[%clk 0:00:37.3]} 28. Qf3 {[%clk 0:02:01.8]} 28... Kh8 {[%clk 0:00:31.3]} 29.
Rdd1 {[%clk 0:01:43]} 29... Qc7 {[%clk 0:00:29.5]} 30. Nd4 {[%clk 0:01:42]}
30... Re5 {[%clk 0:00:26.8]} 31. Qxf7 {[%clk 0:01:39.4]} 31... Qxf7 {[%clk
0:00:24.1]} 32. Rxf7 {[%clk 0:01:39.8]} 32... Nc5 {[%clk 0:00:24.9]} 33. Rdf1
{[%clk 0:01:31.5]} 33... b3 {[%clk 0:00:24.8]} 34. cxb3 {[%clk 0:01:30.2]} 34...
axb3 {[%clk 0:00:26.7]} 35. axb3 {[%clk 0:01:29.6]} 35... Re4 {[%clk 0:00:24.2]}
36. R1f4 {[%clk 0:01:23.5]} 36... Rxf4 {[%clk 0:00:23.5]} 37. Rxf4 {[%clk
0:01:24.1]} 37... Rb8 {[%clk 0:00:24.8]} 38. Nf5 {[%clk 0:01:06.6]} 38... Rxb3
{[%clk 0:00:25.2]} 39. Nxd6 {[%clk 0:01:06.8]} 39... Rxb2+ {[%clk 0:00:26.6]}
40. Kg3 {[%clk 0:01:08.3]} 40... Rb8 {[%clk 0:00:27.2]} 41. Kg4 {[%clk 0:01:07]}
41... Ne6 {[%clk 0:00:27.8]} 42. Re4 {[%clk 0:01:07.3]} 42... Nc5 {[%clk
0:00:25]} 43. Re7 {[%clk 0:01:05.2]} 43... Nd3 {[%clk 0:00:23.8]} 44. Nf5 {[%clk
0:01:01.6]} 44... Rb4+ {[%clk 0:00:21.6]} 45. Kg3 {[%clk 0:01:02]} 45... Rb8
{[%clk 0:00:22.5]} 46. Nh6 {[%clk 0:00:52.8]} 46... Nb4 {[%clk 0:00:22.4]} 47.
Rd7 {[%clk 0:00:49]} 47... Nc6 {[%clk 0:00:18.6]} 48. Nf7+ {[%clk 0:00:41.5]}
48... Kg8 {[%clk 0:00:19.2]} 49. Kg4 {[%clk 0:00:42.6]} 49... Rb4+ {[%clk
0:00:10.6]} 50. Kh5 {[%clk 0:00:43.4]} 50... Rb8 {[%clk 0:00:06.1]} 51. Nh6+
{[%clk 0:00:39.8]} 51... Kh8 {[%clk 0:00:07.5]} 52. Ng4 {[%clk 0:00:41.1]} 52...
Rd8 {[%clk 0:00:07.8]} 53. Rc7 {[%clk 0:00:39.7]} 1-0

[Event "*** Titled Tuesday 3|2 Blitz"]
[Site "Chess.com"]
[Date "2016.07.05"]
[Round "8"]
[White "Alliswell998"]
[Black "GeorgMeier"]
[Result "0-1"]
[WhiteElo "2176"]
[BlackElo "2660"]
[TimeControl "180+2"]
[EndTime "12:44:50 PDT"]
[Termination "GeorgMeier won by resignation"]

1. e4 {[%clk 0:03:00.9]} 1... e6 {[%clk 0:02:38.8]} 2. d4 {[%clk 0:03:01.1]}
2... d5 {[%clk 0:01:51.1]} 3. Nc3 {[%clk 0:03:00.7]} 3... dxe4 {[%clk
0:01:36.7]} 4. Nxe4 {[%clk 0:03:01.6]} 4... Nd7 {[%clk 0:01:38.6]} 5. Nf3 {[%clk
0:02:58.5]} 5... Ngf6 {[%clk 0:01:38.9]} 6. Bg5 {[%clk 0:02:35]} 6... h6 {[%clk
0:01:16.1]} 7. Bxf6 {[%clk 0:02:26.4]} 7... Nxf6 {[%clk 0:01:18]} 8. Bb5+ {[%clk
0:02:23.5]} 8... c6 {[%clk 0:01:15.3]} 9. Bd3 {[%clk 0:02:16.2]} 9... Be7 {[%clk
0:00:58.9]} 10. Qe2 {[%clk 0:02:10.8]} 10... b6 {[%clk 0:00:59.2]} 11. O-O
{[%clk 0:02:01.8]} 11... Bb7 {[%clk 0:00:58.8]} 12. Rfe1 {[%clk 0:01:59.8]}
12... O-O {[%clk 0:00:54.7]} 13. c4 {[%clk 0:01:59.1]} 13... c5 {[%clk
0:00:54.5]} 14. dxc5 {[%clk 0:01:53.7]} 14... bxc5 {[%clk 0:00:54]} 15. Rad1
{[%clk 0:01:51.7]} 15... Qc7 {[%clk 0:00:54.8]} 16. Nxf6+ {[%clk 0:01:48.7]}
16... Bxf6 {[%clk 0:00:55.6]} 17. Be4 {[%clk 0:01:49.8]} 17... Bxe4 {[%clk
0:00:55.6]} 18. Qxe4 {[%clk 0:01:46]} 18... Bxb2 {[%clk 0:00:57.1]} 19. Rb1
{[%clk 0:01:29.1]} 19... Rab8 {[%clk 0:00:56.6]} 20. Red1 {[%clk 0:01:23.8]}
20... Bf6 {[%clk 0:00:49.6]} 21. h3 {[%clk 0:01:14.1]} 21... Rb4 {[%clk
0:00:46.8]} 22. a3 {[%clk 0:01:08.3]} 22... Rbb8 {[%clk 0:00:42.7]} 23. Nh2
{[%clk 0:00:42.2]} 23... Bd4 {[%clk 0:00:41.1]} 24. Nf3 {[%clk 0:00:42.7]} 24...
e5 {[%clk 0:00:42.2]} 25. Nh4 {[%clk 0:00:39.2]} 25... g6 {[%clk 0:00:41.6]} 26.
Nf3 {[%clk 0:00:37.8]} 26... Rfe8 {[%clk 0:00:40.2]} 27. Qd5 {[%clk 0:00:37.5]}
27... Kg7 {[%clk 0:00:39.9]} 28. Nd2 {[%clk 0:00:34.3]} 28... Red8 {[%clk
0:00:38.4]} 29. Qf3 {[%clk 0:00:34.4]} 29... Rxb1 {[%clk 0:00:35.5]} 30. Rxb1
{[%clk 0:00:35.1]} 30... Rb8 {[%clk 0:00:36.1]} 31. Rd1 {[%clk 0:00:34.8]} 31...
Rb2 {[%clk 0:00:35.5]} 32. Ne4 {[%clk 0:00:34.4]} 32... Qc6 {[%clk 0:00:33.1]}
33. Rf1 {[%clk 0:00:28.5]} 33... f5 {[%clk 0:00:32.2]} 34. Nd2 {[%clk
0:00:26.1]} 34... Qxf3 {[%clk 0:00:31.9]} 35. Nxf3 {[%clk 0:00:27.2]} 35... e4
{[%clk 0:00:33.5]} 36. Nh4 {[%clk 0:00:22.2]} 36... Kf6 {[%clk 0:00:32.2]} 37.
g4 {[%clk 0:00:22.6]} 37... f4 {[%clk 0:00:33.5]} 38. Ng2 {[%clk 0:00:24.1]}
38... Ke5 {[%clk 0:00:33.5]} 39. h4 {[%clk 0:00:24.5]} 39... a5 {[%clk 0:00:30]}
40. h5 {[%clk 0:00:24.8]} 40... gxh5 {[%clk 0:00:27.7]} 41. gxh5 {[%clk
0:00:26.7]} 41... Kf5 {[%clk 0:00:29.2]} 42. a4 {[%clk 0:00:21.2]} 42... Kg4
{[%clk 0:00:28.7]} 43. Kh2 {[%clk 0:00:22.2]} 43... Bxf2 {[%clk 0:00:25.6]} 44.
Kh1 {[%clk 0:00:21.4]} 44... Bg3 {[%clk 0:00:26.7]} 45. Rg1 {[%clk 0:00:19.3]}
45... Kh3 {[%clk 0:00:27.4]} 46. Nxf4+ {[%clk 0:00:02.2]} 46... Bxf4 {[%clk
0:00:27.3]} 47. Rg2 {[%clk 0:00:03.6]} 47... Rb1+ {[%clk 0:00:24.2]} 48. Rg1
{[%clk 0:00:04.9]} 48... Rxg1+ {[%clk 0:00:25.2]} 49. Kxg1 {[%clk 0:00:06.8]}
0-1

[Event "*** Titled Tuesday 3|2 Blitz"]
[Site "Chess.com"]
[Date "2016.07.05"]
[Round "8"]
[White "kpio91"]
[Black "LazovT"]
[Result "0-1"]
[WhiteElo "2529"]
[BlackElo "2325"]
[TimeControl "180+2"]
[EndTime "12:44:53 PDT"]
[Termination "LazovT won by resignation"]

1. e4 {[%clk 0:03:01.9]} 1... c5 {[%clk 0:03:00.4]} 2. g3 {[%clk 0:02:58.8]}
2... g6 {[%clk 0:02:58.6]} 3. Bg2 {[%clk 0:02:59.4]} 3... Bg7 {[%clk 0:02:59.5]}
4. Nf3 {[%clk 0:02:57.3]} 4... Nc6 {[%clk 0:02:59]} 5. O-O {[%clk 0:02:58.1]}
5... e6 {[%clk 0:02:59.2]} 6. d3 {[%clk 0:02:58.1]} 6... Nge7 {[%clk 0:02:59.4]}
7. c3 {[%clk 0:02:59.8]} 7... d5 {[%clk 0:02:58.6]} 8. Qe2 {[%clk 0:02:45.3]}
8... O-O {[%clk 0:02:57.5]} 9. e5 {[%clk 0:02:46.4]} 9... d4 {[%clk 0:02:54.3]}
10. c4 {[%clk 0:02:46.9]} 10... b6 {[%clk 0:02:52.9]} 11. h4 {[%clk 0:02:47.7]}
11... Bb7 {[%clk 0:02:50.6]} 12. Bf4 {[%clk 0:02:49.3]} 12... h5 {[%clk
0:02:50.2]} 13. Nbd2 {[%clk 0:02:49.5]} 13... Nf5 {[%clk 0:02:49.9]} 14. Ne4
{[%clk 0:02:46.4]} 14... Nce7 {[%clk 0:02:40.8]} 15. Bg5 {[%clk 0:02:42.3]}
15... Qc7 {[%clk 0:02:32.9]} 16. Nf6+ {[%clk 0:02:39.4]} 16... Kh8 {[%clk
0:02:33.8]} 17. Nd2 {[%clk 0:02:36.8]} 17... Ng8 {[%clk 0:02:32.5]} 18. Bxb7
{[%clk 0:02:34.3]} 18... Qxb7 {[%clk 0:02:34.4]} 19. Nde4 {[%clk 0:02:36]} 19...
b5 {[%clk 0:02:26.4]} 20. b3 {[%clk 0:02:28.7]} 20... Qc6 {[%clk 0:02:19.8]} 21.
g4 {[%clk 0:02:28.8]} 21... bxc4 {[%clk 0:01:30.5]} 22. gxf5 {[%clk 0:02:24.6]}
22... exf5 {[%clk 0:01:26.7]} 23. Ng3 {[%clk 0:02:23.2]} 23... Nxf6 {[%clk
0:01:25]} 24. exf6 {[%clk 0:02:20.5]} 24... Bxf6 {[%clk 0:01:25.7]} 25. Qd2
{[%clk 0:01:39.1]} 25... c3 {[%clk 0:01:24.3]} 26. Bxf6+ {[%clk 0:01:39.8]}
26... Qxf6 {[%clk 0:01:24.8]} 27. Qh6+ {[%clk 0:01:40.9]} 27... Kg8 {[%clk
0:01:26.3]} 28. Nxh5 {[%clk 0:01:42]} 28... Qh8 {[%clk 0:01:25.3]} 29. Qxh8+
{[%clk 0:01:41.8]} 29... Kxh8 {[%clk 0:01:27.2]} 30. Nf4 {[%clk 0:01:42.6]}
30... Kg7 {[%clk 0:01:26.7]} 31. Kg2 {[%clk 0:01:42.6]} 31... Rh8 {[%clk
0:01:25.4]} 32. Kg3 {[%clk 0:01:43.9]} 32... a5 {[%clk 0:01:23.7]} 33. Rae1
{[%clk 0:01:41.2]} 33... Rae8 {[%clk 0:01:21.1]} 34. Ng2 {[%clk 0:01:28.8]}
34... a4 {[%clk 0:01:19.1]} 35. Rxe8 {[%clk 0:01:15.5]} 35... Rxe8 {[%clk
0:01:18.7]} 36. Re1 {[%clk 0:01:17.1]} 36... axb3 {[%clk 0:01:15.9]} 37. axb3
{[%clk 0:01:13]} 37... Rb8 {[%clk 0:01:16]} 38. Rc1 {[%clk 0:00:44]} 38... Rxb3
{[%clk 0:01:10.4]} 39. Ne1 {[%clk 0:00:45.4]} 39... Rb2 {[%clk 0:01:08.1]} 40.
Kf3 {[%clk 0:00:43.7]} 40... Rd2 {[%clk 0:01:05.5]} 41. Kg2 {[%clk 0:00:30.9]}
41... Kf6 {[%clk 0:01:04.6]} 42. Kf1 {[%clk 0:00:31.6]} 42... Ke6 {[%clk
0:01:02.9]} 43. Ra1 {[%clk 0:00:31.6]} 43... Kd5 {[%clk 0:01:01.8]} 44. Rb1
{[%clk 0:00:27]} 44... f6 {[%clk 0:00:46]} 45. Ra1 {[%clk 0:00:26.5]} 45... c4
{[%clk 0:00:44.6]} 46. Ra5+ {[%clk 0:00:19.6]} 46... Kc6 {[%clk 0:00:45.3]} 47.
dxc4 {[%clk 0:00:21.3]} 47... d3 {[%clk 0:00:44.7]} 48. Nxd3 {[%clk 0:00:15.1]}
48... Rxd3 {[%clk 0:00:46.6]} 49. Ke2 {[%clk 0:00:13.7]} 49... Rd2+ {[%clk
0:00:47.9]} 50. Ke3 {[%clk 0:00:14.6]} 50... f4+ {[%clk 0:00:47.1]} 51. Kxf4
{[%clk 0:00:06.3]} 51... c2 {[%clk 0:00:47.1]} 52. Ra6+ {[%clk 0:00:06]} 52...
Kc5 {[%clk 0:00:46.7]} 53. Ra5+ {[%clk 0:00:07.9]} 53... Kb4 {[%clk 0:00:43.8]}
54. Ra1 {[%clk 0:00:09.8]} 54... Rd1 {[%clk 0:00:43]} 0-1

[Event "*** Titled Tuesday 3|2 Blitz"]
[Site "Chess.com"]
[Date "2016.07.05"]
[Round "8"]
[White "wnstop"]
[Black "SmoothAsAHedgehog"]
[Result "0-1"]
[WhiteElo "2372"]
[BlackElo "2501"]
[TimeControl "180+2"]
[EndTime "12:44:57 PDT"]
[Termination "SmoothAsAHedgehog won by resignation"]

1. e4 {[%clk 0:03:01.9]} 1... c5 {[%clk 0:02:59.6]} 2. Nf3 {[%clk 0:02:58.9]}
2... g6 {[%clk 0:02:55.6]} 3. d4 {[%clk 0:02:55.1]} 3... cxd4 {[%clk 0:02:57.5]}
4. Nxd4 {[%clk 0:02:56.7]} 4... Bg7 {[%clk 0:02:52.6]} 5. Nc3 {[%clk 0:02:56.3]}
5... Nc6 {[%clk 0:02:52.2]} 6. Be3 {[%clk 0:02:56.2]} 6... Nf6 {[%clk
0:02:53.6]} 7. Bc4 {[%clk 0:02:57.3]} 7... Qa5 {[%clk 0:02:51.5]} 8. O-O {[%clk
0:02:53.1]} 8... d6 {[%clk 0:02:49.9]} 9. h3 {[%clk 0:02:37.1]} 9... O-O {[%clk
0:02:48.5]} 10. Bb3 {[%clk 0:02:37.4]} 10... Qh5 {[%clk 0:02:45.8]} 11. Qxh5
{[%clk 0:02:35.2]} 11... Nxh5 {[%clk 0:02:41.7]} 12. Rad1 {[%clk 0:02:35.2]}
12... Nf6 {[%clk 0:02:36.5]} 13. Nd5 {[%clk 0:02:32.2]} 13... Nxd5 {[%clk
0:01:46.2]} 14. exd5 {[%clk 0:02:32.8]} 14... Nxd4 {[%clk 0:01:32.2]} 15. Bxd4
{[%clk 0:02:34.7]} 15... Bxd4 {[%clk 0:01:26.9]} 16. Rxd4 {[%clk 0:02:36.6]}
16... Bd7 {[%clk 0:01:27.1]} 17. Re1 {[%clk 0:02:35.2]} 17... Rfe8 {[%clk
0:01:27.9]} 18. Rde4 {[%clk 0:02:24.1]} 18... Kf8 {[%clk 0:01:27.8]} 19. g4
{[%clk 0:02:24.8]} 19... Rac8 {[%clk 0:01:20.3]} 20. Kg2 {[%clk 0:02:25.1]}
20... b5 {[%clk 0:01:16.4]} 21. c3 {[%clk 0:02:16.6]} 21... Rc5 {[%clk
0:01:15.6]} 22. Kf3 {[%clk 0:02:03.9]} 22... a5 {[%clk 0:01:15.6]} 23. a3 {[%clk
0:02:04.4]} 23... Bc8 {[%clk 0:01:11]} 24. Ke3 {[%clk 0:02:04.6]} 24... Bb7
{[%clk 0:01:07]} 25. Rd4 {[%clk 0:02:05.1]} 25... Ba8 {[%clk 0:00:45.2]} 26. Kd3
{[%clk 0:01:57.4]} 26... Rb8 {[%clk 0:00:44.1]} 27. h4 {[%clk 0:01:49.7]} 27...
h6 {[%clk 0:00:39.9]} 28. f4 {[%clk 0:01:49.9]} 28... Bb7 {[%clk 0:00:35.5]} 29.
Ba2 {[%clk 0:01:36.1]} 29... Bc8 {[%clk 0:00:32.7]} 30. Rg1 {[%clk 0:01:30.7]}
30... Ba6 {[%clk 0:00:30.1]} 31. b4 {[%clk 0:01:31.1]} 31... Rc7 {[%clk
0:00:21.9]} 32. Rg3 {[%clk 0:01:28]} 32... Rbc8 {[%clk 0:00:21.2]} 33. Kd2
{[%clk 0:01:29]} 33... Ra8 {[%clk 0:00:19.4]} 34. Kc2 {[%clk 0:01:26]} 34...
axb4 {[%clk 0:00:18.5]} 35. axb4 {[%clk 0:01:27]} 35... Bc8 {[%clk 0:00:19.2]}
36. Kb2 {[%clk 0:01:25.6]} 36... Bd7 {[%clk 0:00:19.9]} 37. Bb3 {[%clk
0:01:21.6]} 37... Rca7 {[%clk 0:00:20.4]} 38. Rd1 {[%clk 0:01:22.8]} 38... Rc8
{[%clk 0:00:15.7]} 39. Re1 {[%clk 0:01:23.6]} 39... Rac7 {[%clk 0:00:14.2]} 40.
h5 {[%clk 0:01:20.9]} 40... gxh5 {[%clk 0:00:12.1]} 41. gxh5 {[%clk 0:01:22.1]}
41... Bf5 {[%clk 0:00:13]} 42. Reg1 {[%clk 0:01:16.8]} 42... e6 {[%clk 0:00:13]}
43. Rd1 {[%clk 0:00:39.5]} 43... Ke7 {[%clk 0:00:13]} 44. dxe6 {[%clk 0:00:40]}
44... fxe6 {[%clk 0:00:14.9]} 45. Rg7+ {[%clk 0:00:39.5]} 45... Kf6 {[%clk
0:00:15.3]} 46. Rxc7 {[%clk 0:00:39.1]} 46... Rxc7 {[%clk 0:00:17.2]} 47. Rxd6
{[%clk 0:00:40.8]} 47... Rg7 {[%clk 0:00:17.8]} 48. Rb6 {[%clk 0:00:37.2]} 48...
Rg2+ {[%clk 0:00:18.2]} 49. Ka3 {[%clk 0:00:38.5]} 49... Rg3 {[%clk 0:00:17.5]}
50. Kb2 {[%clk 0:00:38.4]} 50... Rg2+ {[%clk 0:00:18.3]} 51. Kc1 {[%clk
0:00:37.9]} 51... Rg1+ {[%clk 0:00:17.8]} 52. Kd2 {[%clk 0:00:39.1]} 52... Rg2+
{[%clk 0:00:19.2]} 53. Ke3 {[%clk 0:00:39.6]} 53... Rg3+ {[%clk 0:00:20.1]} 54.
Kd2 {[%clk 0:00:35]} 54... Rd3+ {[%clk 0:00:20.9]} 55. Ke1 {[%clk 0:00:33.8]}
55... Rxc3 {[%clk 0:00:21.9]} 56. Bd1 {[%clk 0:00:33.5]} 56... Bd3 {[%clk
0:00:20.5]} 57. Bg4 {[%clk 0:00:30.6]} 57... Bc4 {[%clk 0:00:20.5]} 58. f5
{[%clk 0:00:29.5]} 58... Rg3 {[%clk 0:00:20.3]} 59. Be2 {[%clk 0:00:26.5]} 59...
Re3 {[%clk 0:00:19.2]} 60. fxe6 {[%clk 0:00:25.6]} 60... Rxe2+ {[%clk
0:00:19.8]} 61. Kd1 {[%clk 0:00:27.5]} 61... Rxe6 {[%clk 0:00:21.3]} 0-1

[Event "*** Titled Tuesday 3|2 Blitz"]
[Site "Chess.com"]
[Date "2016.07.05"]
[Round "8"]
[White "FearlessKing64"]
[Black "hypert"]
[Result "0-1"]
[WhiteElo "2111"]
[BlackElo "2285"]
[TimeControl "180+2"]
[EndTime "12:45:02 PDT"]
[Termination "hypert won by checkmate"]

1. e4 {[%clk 0:03:01.9]} 1... c5 {[%clk 0:03:00.5]} 2. Nf3 {[%clk 0:03:02.6]}
2... e6 {[%clk 0:03:01.9]} 3. c4 {[%clk 0:03:03.2]} 3... a6 {[%clk 0:02:57.3]}
4. Nc3 {[%clk 0:03:02.7]} 4... Nc6 {[%clk 0:02:58.5]} 5. Be2 {[%clk 0:03:02.9]}
5... Bd6 {[%clk 0:02:57.7]} 6. O-O {[%clk 0:02:58.5]} 6... Qc7 {[%clk
0:02:58.2]} 7. h3 {[%clk 0:02:58.8]} 7... Nd4 {[%clk 0:02:58.4]} 8. d3 {[%clk
0:02:58.1]} 8... Ne7 {[%clk 0:02:58.1]} 9. Be3 {[%clk 0:02:55.7]} 9... Nec6
{[%clk 0:02:58.6]} 10. Rb1 {[%clk 0:02:51]} 10... O-O {[%clk 0:02:56.6]} 11. a3
{[%clk 0:02:44.2]} 11... f5 {[%clk 0:02:55]} 12. b4 {[%clk 0:02:39.4]} 12... b6
{[%clk 0:02:55.3]} 13. b5 {[%clk 0:02:31.8]} 13... Nxf3+ {[%clk 0:02:43.4]} 14.
Bxf3 {[%clk 0:02:30.6]} 14... Ne5 {[%clk 0:02:26.4]} 15. Be2 {[%clk 0:02:13.2]}
15... f4 {[%clk 0:02:26.6]} 16. Bd2 {[%clk 0:02:05.4]} 16... a5 {[%clk 0:02:26]}
17. f3 {[%clk 0:01:57.9]} 17... Ng6 {[%clk 0:02:23.6]} 18. Be1 {[%clk
0:01:54.2]} 18... Be5 {[%clk 0:02:24.3]} 19. Qd2 {[%clk 0:01:46.8]} 19... Bd4+
{[%clk 0:02:24.5]} 20. Bf2 {[%clk 0:01:47.1]} 20... Qe5 {[%clk 0:02:23.3]} 21.
Na4 {[%clk 0:01:43]} 21... Rb8 {[%clk 0:02:23.4]} 22. Bd1 {[%clk 0:01:25.1]}
22... d6 {[%clk 0:02:17.7]} 23. Kh1 {[%clk 0:01:21.6]} 23... Bd7 {[%clk
0:02:12.1]} 24. Be1 {[%clk 0:01:16.5]} 24... Qg5 {[%clk 0:02:08.4]} 25. Nc3
{[%clk 0:01:15.4]} 25... Nh4 {[%clk 0:01:58.8]} 26. g3 {[%clk 0:00:47.2]} 26...
Ng6 {[%clk 0:01:04.9]} 27. g4 {[%clk 0:00:46]} 27... h5 {[%clk 0:00:57.6]} 28.
Qh2 {[%clk 0:00:35.5]} 28... Kf7 {[%clk 0:00:41.7]} 29. Ne2 {[%clk 0:00:36.5]}
29... Be5 {[%clk 0:00:41.5]} 30. h4 {[%clk 0:00:30]} 30... Qf6 {[%clk
0:00:32.7]} 31. g5 {[%clk 0:00:31.4]} 31... Qe7 {[%clk 0:00:31.2]} 32. Bd2
{[%clk 0:00:32.6]} 32... Kg8 {[%clk 0:00:30.8]} 33. Qf2 {[%clk 0:00:25.2]} 33...
d5 {[%clk 0:00:30.8]} 34. Kg2 {[%clk 0:00:19.9]} 34... Rbd8 {[%clk 0:00:22.3]}
35. Rh1 {[%clk 0:00:20.3]} 35... Bc8 {[%clk 0:00:21.7]} 36. cxd5 {[%clk
0:00:15.3]} 36... exd5 {[%clk 0:00:21.9]} 37. Bb3 {[%clk 0:00:16.3]} 37... Be6
{[%clk 0:00:22.5]} 38. d4 {[%clk 0:00:10.9]} 38... Bb8 {[%clk 0:00:12]} 39. e5
{[%clk 0:00:11.2]} 39... cxd4 {[%clk 0:00:08.2]} 40. Qxd4 {[%clk 0:00:12]} 40...
Bxe5 {[%clk 0:00:08.7]} 41. Qxb6 {[%clk 0:00:10.4]} 41... Kh7 {[%clk 0:00:08.7]}
42. Bc2 {[%clk 0:00:10]} 42... Bf5 {[%clk 0:00:08.8]} 43. Bxf5 {[%clk
0:00:09.7]} 43... Rxf5 {[%clk 0:00:10.7]} 44. Qf2 {[%clk 0:00:09]} 44... d4
{[%clk 0:00:12]} 45. b6 {[%clk 0:00:07.9]} 45... d3 {[%clk 0:00:11.5]} 46. Nc3
{[%clk 0:00:05.2]} 46... Bb8 {[%clk 0:00:10.2]} 47. Ne4 {[%clk 0:00:06.4]} 47...
Re5 {[%clk 0:00:10.9]} 48. Rbe1 {[%clk 0:00:04.4]} 48... Qe6 {[%clk 0:00:10.4]}
49. Rh2 {[%clk 0:00:03.4]} 49... Rc8 {[%clk 0:00:11.3]} 50. Qd4 {[%clk 0:00:02]}
50... Rc6 {[%clk 0:00:12.2]} 51. Qd8 {[%clk 0:00:02.2]} 51... Rxb6 {[%clk
0:00:12.4]} 52. Nf6+ {[%clk 0:00:02.3]} 52... gxf6 {[%clk 0:00:12.8]} 53. gxf6
{[%clk 0:00:03.8]} 53... Rxe1 {[%clk 0:00:12.6]} 54. Bxe1 {[%clk 0:00:04.6]}
54... Rb2+ {[%clk 0:00:12.6]} 55. Kh1 {[%clk 0:00:04.7]} 55... Qxe1# {[%clk
0:00:12.2]} 0-1